Cogmind - Beta 16.1 @@@ ROGUE MODE // 2026.02.16 @ 14:35:22 Player: Zish Result: Destroyed by OK-2JC(R) with Subdweller Machine Gun Performance ------------- Evolutions (0) 0 Regions Visited (2) 400 Robots Destroyed (19) 95 Value Destroyed (592) 592 Prototype IDs (0) 0 Alien Tech Used (0) 0 Bonus (0) 0 TOTAL SCORE: 1087 Bonus ------- None Cogmind --------- Core Integrity 0/250 Matter 281/300 Energy 100/100 System Corruption 2% Temperature Cool (0) Movement Core (200) Ox3 Location -10/Subcaves Parts ------- > --- POWER (1) -------- (None) > --- PROPULSION (2) --- (None) > --- UTILITY (2) ------ Small Storage Unit Transport Network Coupler > --- WEAPON (2) ------- Assault Rifle Barrage Gun > --- INVENTORY (8) ---- Assault Rifle Light Assault Rifle Light Assault Rifle Grenade Launcher Peak State ------------ > --- POWER ------------ Light Nuclear Core > --- PROPULSION ------- Light Treads Light Treads > --- UTILITY ---------- Small Storage Unit Transport Network Coupler > --- WEAPON ----------- Assault Rifle Assault Rifle > --- INVENTORY -------- Assault Rifle Assault Rifle Assault Rifle Light Assault Rifle Light Assault Rifle Grenade Launcher [Rating: 9] Favorites ----------- Power Ion Engine Engine Ion Engine Power Core Light Nuclear Core Propulsion Light Treads Treads Light Treads Utility Small Storage Unit Storage Small Storage Unit Processor Transport Network Coupler Weapon Assault Rifle Ballistic Gun Assault Rifle Build | -11 -10 -10 ------- Run | Yrd Mat Sub Slots Evolved . | . . . Power . | . . . Propulsion . | . . . Utility . | . . . Weapon . | . . . Parts Attached 15 | 6 5 4 Power 3 | 1 1 1 Engine 2 | 1 1 . Core 1 | . . 1 Reactor . | . . . Propulsion 2 | 2 . . Treads 2 | 2 . . Leg . | . . . Wheel . | . . . Hover . | . . . Flight . | . . . Utility 3 | 1 2 . Device . | . . . Storage 1 | 1 . . Processor 2 | . 2 . Hackware . | . . . Protection . | . . . Artifact . | . . . Weapon 7 | 2 2 3 Energy Gun . | . . . Energy Cannon . | . . . Ballistic Gun 7 | 2 2 3 Ballistic Cannon . | . . . Launcher . | . . . Special Weapon . | . . . Impact Weapon . | . . . Slashing Weapon . | . . . Piercing Weapon . | . . . Special Melee Weapon . | . . . Unidentified Prototypes . | . . . Parts Lost 8 | . 1 7 Power 3 | . 1 2 Propulsion 2 | . . 2 Utility . | . . . Weapon 3 | . . 3 Highest Loss Streak 4 | . 1 4 To Critical Strikes 1 | . . 1 Average Backups 4 | . 3 5 Power . | . 1 . Propulsion . | . . . Utility . | . . . Weapon 3 | . 2 4 Tool/Special . | . . . Unused Backups 2 | . . 2 Power . | . . . Propulsion . | . . . Utility . | . . . Weapon 2 | . . 2 Tool/Special . | . . . Average Slot Usage (%) 93 | . 99 82 Engine 9 | . 14 . Core 3 | . . 8 Treads 23 | . 28 15 Storage 14 | . 14 14 Processor 13 | . 13 14 Ballistic Gun 28 | . 28 28 Peak Build Rating 9 | 6 7 9 Average Rating 6 | 4 6 7 On Entrance 4 | . 6 7 Avg Prop Armor Cover (%) . | . . . Naked Turns . | . . . Heaviest Build 14 | 13 14 14 Greatest Support 40 | 40 40 40 Greatest Overweight (x) 3 | . . 3 Average Overweight (x) . | . . . Largest Inventory Capacity 8 | 8 8 8 Average Capacity 7 | 6 8 8 Most Carried 7 | 2 7 7 Average Carried 4 | . 3 5 Final Capacity 8 | 8 8 8 Final Carried 7 | 2 7 4 Class Distribution -------------------- 100% | Mutant Dominant Class ---------------- Mutant | -10/Materials Mutant | -10/Subcaves Resources | -11 -10 -10 ----------- Run | Yrd Mat Sub Matter Collected 734 | 163 388 183 Remotely . | . . . Salvage Created 809 | . 508 301 Parts 40 | . 30 10 Haulers Intercepted 1 | . 1 . Recyclers Shooed 1 | . 1 . Parts Field Recycled . | . . . Retrieved Matter . | . . . Parts Self-Destructed 14 | . . 14 Prevented . | . . . Parts Restored . | . . . Kills | -11 -10 -10 ------- Run | Yrd Mat Sub Combat Hostiles Destroyed 15 | . 9 6 Guns 15 | . 9 6 Classes Destroyed 5 | . 4 1 Worker 2 | . 2 . Hauler 1 | . 1 . Operator 1 | . 1 . Grunt 9 | . 9 . Subdweller 6 | . . 6 Best Kill Streak 3 | . 3 2 Combat Bots Only 2 | . 2 2 Max Kills in Single Turn 1 | . 1 1 Gunslinging . | . . . Exploded . | . . . Melee . | . . . Uniques/NPCs Destroyed . | . . . Combat | -11 -10 -10 -------- Run | Yrd Mat Sub Hostile Shots Fired 98 | . 42 56 Missed 27 | . 10 17 Hits 71 | . 32 39 Projectile 71 | . 32 39 Critical Strikes 2 | . . 2 Damage Taken 1222 | . 414 808 Core 257 | . 124 133 Absorbed by Shields . | . . . Core Remaining (%) 100 | 100 . . Volleys Fired 79 | . 51 28 Largest 2 | . 2 2 Hottest 48 | . 40 48 Shots Fired 155 | . 102 53 Gun 155 | . 102 53 Cannon . | . . . Launcher . | . . . Special . | . . . Kinetic 155 | . 102 53 Thermal . | . . . Explosive . | . . . Electromagnetic . | . . . Robot Hit Streak 15 | . 12 15 Robot Miss Streak 4 | . 4 2 Penetration Max . | . . . Secondary Targets 1 | . 1 . Max Gunslinging Chain 1 | . 1 . Shots Hit Robots 98 | . 61 37 Core Hits 46 | . 30 16 Critical Kills . | . . . Critical Parts Destroyed . | . . . Critical Strikes 1 | . . 1 Destroy 1 | . . 1 Melee Attacks . | . . . Impact . | . . . Slashing . | . . . Piercing . | . . . Sneak Attacks . | . . . Combat Hostiles . | . . . Follow-up Attacks . | . . . Damage Inflicted 1241 | . 740 501 Guns 1241 | . 740 501 Cannons . | . . . Explosions . | . . . Melee . | . . . Ramming . | . . . Kinetic 1241 | . 740 501 Thermal . | . . . Explosive . | . . . Electromagnetic . | . . . Impact . | . . . Slashing . | . . . Piercing . | . . . Highest Corruption 2 | . 2 2 Average Corruption 2 | . 2 2 Corruption Purged . | . . . Corruption Blocked . | . . . Effects 18 | . 8 10 Message Errors 5 | . 2 3 Matter Fused 6 | . 2 4 Heat Flow Errors 1 | . . 1 Energy Discharges 1 | . . 1 Data Loss (minor) 2 | . 2 . Data Loss (major) 1 | . 1 . Alerts 1 | . 1 . Weapon Failures 1 | . . 1 Overload Shots . | . . . Overflow Damage . | . . . Projectiles . | . . . Explosions . | . . . Melee . | . . . Knockbacks . | . . . Impact . | . . . Kinetic . | . . . Secondary . | . . . Self-Inflicted Damage . | . . . Shots . | . . . Rammed . | . . . Targets Rammed . | . . . Kicked . | . . . Crushed . | . . . Highest Temperature 253 | . 15 253 Average Temperature 29 | . 6 140 Received Heat Transfer 339 | . 219 120 Siege Activations . | . . . Martial Activations . | . . . Shielding Activations . | . . . Robots Disrupted . | . . . Combat Hostiles . | . . . Robots Corrupted . | . . . Combat Hostiles . | . . . Parts Fried . | . . . Impact Corruptions . | . . . Robots Melted . | . . . Combat Hostiles . | . . . Parts Melted 1 | . . 1 Heat Transferred . | . . . Parts Sabotaged . | . . . Parts Stolen . | . . . Parts Stripped . | . . . Power Chain Reactions . | . . . Alert | -11 -10 -10 ------- Run | Yrd Mat Sub Maximum Alert Level . | . . . Low Security (%) 100 | 100 100 . Level 1 . | . . . Level 2 . | . . . Level 3 . | . . . Level 4 . | . . . Level 5 . | . . . High Security . | . . . Max Security . | . . . Peak Influence 80 | . 80 . Initial . | . . . Average 18 | . 20 . Influence Increases 317 | . 317 . Destroy 0b10 Robot/C 180 | . 180 . Destroy 0b10 Robot/NC 20 | . 20 . Destroy Leader 52 | . 52 . Successful Hack 4 | . 4 . Destroy Structure 1 | . 1 . Lose Combat Pursuer 60 | . 60 . Influence Decreases 317 | . 261 56 Entered New Map 28 | . . 28 Time Decay 269 | . 251 18 Lost Part 20 | . 10 10 Squads Dispatched 3 | . 3 . Investigation 2 | . 2 . Extermination . | . . . Reinforcement 1 | . 1 . Assault . | . . . Garrison . | . . . Intercept . | . . . Searches Triggered . | . . . Construction Impeded . | . . . Haulers Reinforced . | . . . Active Scanning Responses . | . . . Cargo Convoy Interrupts . | . . . Stealth | -11 -10 -10 --------- Run | Yrd Mat Sub Distress Signals 3 | . 3 . Communications Jammed . | . . . Distress Signals . | . . . Times Spotted 29 | . 21 8 Peak Tracking Total 4 | . 4 2 Tactical Retreats 2 | . 2 . Traps | -11 -10 -10 ------- Run | Yrd Mat Sub Traps Triggered 3 | . 3 . Indirectly . | . . . Trap Hack Attempts . | . . . Triggered . | . . . Disarmed . | . . . Reprogrammed . | . . . Reused . | . . . Traps Extracted . | . . . Installed . | . . . Triggered . | . . . Machines | -11 -10 -10 ---------- Run | Yrd Mat Sub Machines Disabled . | . . . Max in Single Turn . | . . . Machines Repaired . | . . . Machines Dismantled . | . . . Machines Sabotaged . | . . . Overloaded Fab Kills . | . . . Hacking | -11 -10 -10 --------- Run | Yrd Mat Sub Machines Accessed 3 | . 3 . Terminals 3 | . 3 . Fabricators . | . . . Repair Stations . | . . . Recycling Units . | . . . Scanalyzers . | . . . Garrison Access . | . . . Total Hacks 6 | . 6 . Successful 3 | . 3 . Failed 3 | . 3 . Catastrophic 1 | . 1 . Database Lockouts . | . . . Manual . | . . . Terminals 6 | . 6 . Fabricators . | . . . Repair Stations . | . . . Recycling Units . | . . . Scanalyzers . | . . . Garrison Access . | . . . Terminal Hacks 3 | . 3 . Emergency Access Points 1 | . 1 . Locate Traps 2 | . 2 . Fabricator Hacks . | . . . Repair Station Hacks . | . . . Recycling Unit Hacks . | . . . Scanalyzer . | . . . Garrison Access Hacks . | . . . Unauthorized Hacks . | . . . Terminals . | . . . Fabricators . | . . . Repair Stations . | . . . Recycling Units . | . . . Scanalyzers . | . . . Garrison Access . | . . . Data Cores Recovered . | . . . Used . | . . . Hacking Detections 1 | . 1 . Full Trace Events 1 | . 1 . Feedback Events . | . . . Feedback Blocked . | . . . Robot Schematics Acquired . | . . . Robots Built . | . . . Authchips . | . . . Time . | . . . Total Robot Build Rating . | . . . Part Schematics Acquired . | . . . Parts Built . | . . . Authchips . | . . . Time . | . . . Total Part Build Rating . | . . . Part Studies Acquired . | . . . Parts Repaired . | . . . Time . | . . . Parts Recycled . | . . . Recycled Matter . | . . . Retrieved Matter . | . . . Retrieved Components . | . . . Parts Scanalyzed . | . . . Part Schematics Acquired . | . . . Parts Damaged . | . . . Bothacking | -11 -10 -10 ------------ Run | Yrd Mat Sub Used RIF Installer . | . . . Robots Hacked . | . . . Non-combat . | . . . Combat . | . . . Robot Hacks Applied . | . . . Relay Couplers Released . | . . . Fabnet Peak Effective % . | . . . Robots Rewired . | . . . Allies Hacked . | . . . Hacks Repelled . | . . . Allies | -11 -10 -10 -------- Run | Yrd Mat Sub Total Allies . | . . . Largest Group . | . . . Highest-Rated Group . | . . . Highest-Rated Ally . | . . . Total Orders . | . . . Ally Attacks . | . . . Total Damage . | . . . Kills . | . . . Allies Corrupted . | . . . Allies Melted . | . . . Intel | -11 -10 -10 ------- Run | Yrd Mat Sub Active Infowar (turns) 1138 | . 520 618 T.N.C. 1138 | . 520 618 Robot Analysis Total . | . . . Derelict Logs Recovered . | . . . Drone Launches . | . . . Drone Recoveries . | . . . Exploration | -11 -10 -10 ------------- Run | Yrd Mat Sub Turns Passed 1806 | 95 1093 618 Spaces Moved 790 | 55 457 278 Core 75 | 3 . 72 Treads 715 | 52 457 206 Legs . | . . . Wheels . | . . . Hover . | . . . Flight . | . . . Fastest Speed 50 | 50 160 150 Average Speed 160 | 154 160 161 Slowest Speed 200 | 160 160 200 Overloaded Moves . | . . . Propulsion Burnouts . | . . . Robots Hopped . | . . . Potential Cave-ins . | . . . Cave-ins Triggered . | . . . Exploration Rate (%) 29 | 3 60 26 Regions Visited 2 Branch Regions 1 Pre-discovered Areas . | . . . Known Exits Taken . | . . . Unknown Exits Taken 2 | 1 1 . Scrap Searched . | . . . Spaces Dug . | . . . Terrain Destroyed . | . . . Melee . | . . . Projectile . | . . . AOE . | . . . Terrain Rammed . | . . . Walls Destroyed . | . . . Machines Disabled . | . . . Actions | -11 -10 -10 --------- Run | Yrd Mat Sub Total 1179 | 62 723 394 Wait 287 | . 205 82 Move 788 | 54 456 278 Hop . | . . . Pick Up 7 | 2 5 . Fast Attach 8 | 6 1 1 Attach 6 | . 2 4 Detach 2 | . 1 1 Swap 2 | . 2 . Drop . | . . . Fire 79 | . 51 28 Melee . | . . . Ram . | . . . Kick . | . . . Crush . | . . . Escape Stasis . | . . . Rewire . | . . . Trap . | . . . Miscellaneous . | . . . Route ------- -11/Scrapyard -10/Materials (discovered 4 exits: [*Mat x2] / [*Min] / [*Sub]) -10/Subcaves (discovered 1 exit: [*Mat]) History --------- Turn | Location | Event 11 | -11/Scrapyard | Discovered new exit (range 15) 96 | -11/Scrapyard | Entered Materials 301 | -10/Materials | Build established: Mutant 509 | -10/Materials | Discovered new exit (range 7) 685 | -10/Materials | Discovered new exit (range 16) 686 | -10/Materials | Discovered new exit (range 12) 729 | -10/Materials | Discovered new exit (range 13) 1189 | -10/Materials | Entered Subcaves 1190 | -10/Subcaves | Approached by a straggling Scientist 1211 | -10/Subcaves | Core integrity fell below 50% 1244 | -10/Subcaves | Discovered new exit (range 7) 1344 | -10/Subcaves | Shifting Twisted Machinery released Sub. Laser 1350 | -10/Subcaves | Shifting Twisted Machinery released Sub. Monowheel 1624 | -10/Subcaves | Core integrity fell below 20% 1661 | -10/Subcaves | Lost 4 parts (1p1n2w) 1694 | -10/Subcaves | Shifting Twisted Machinery released Barrage Gun 1697 | -10/Subcaves | Shifting Twisted Machinery released Sub. Beam Cannon 1807 | -10/Subcaves | Destroyed by OK-2JC(R) with Subdweller Machine Gun Last Messages --------------- 01642_ Subatomizers dissect the Sub. Monowheel. 01642_ Acquired 35 matter. 7M-PU5(c): "I think it's somewhere southwest of here" 01673_ System corrupted: Heat flow error (+298). Barrage Gun falls loose from the Twisted Machinery. Sub. Beam Cannon falls loose from the Twisted Machinery. 7M-PU5(c): "I think it's somewhere south of here" 01707_ Acquired Barrage Gun. 01713_ System corrupted: Matter fused (-6). 01739_ Acquired 16 matter. 01740_ System corrupted: Matter fused (-5). 01745_ Acquired 10 matter. 7M-PU5(c): "I think it's somewhere south of here" 01804_ L 3IIB%Y%ST=ZVOFHLGWB= =U9F#GKIDFOCELN,K 01806_ System corrupted: Barrage Gun jammed. Map ----- +----------------------------------------------------+ | ?????????????????????????# %#????????????? | | ?????????????????????###### %### " ##????????????? | | ?????????????????????# ## ### ##?????????????? | | ?????????????????????# # "" ##????????????? | | ?????????????????????# %## " ##???????????? | | ?????????????????????## ## " #???????????? | | ?????????????????????## ##" " ##???????????? | | ?????????????????????# #### ##???????????? | | ????????????????????## #?# " #?????####??? | | ???????????????????## #?## " ######"""#??? | | ??????????????????## #??# & !## "#???# | | ??????????????????# ##### &%& = #??## | | ??????????????????# #### """ ## & ! #??# | | ??????????????????# #???## """"### ## ## | | ??????????????????# ?????# """""#?#### ## ## | | ??????????????????# ?????# " """##???#### # | | ??????????????????# #???## """"##"#????# ## | | ??????????????????# #### " ### #???## #?# | | ??????????????????## # " #?# #??## ##???# | | ??????????????????# ##### ""##?# #?# #???## | | ??????????????????# # ### "]### ### ##?## | | ??????????????????## ### " ## #?# | | ???????????????????#% ####" # #?# | | ????????????????# ### #??""### #?# | | ????????????????## ??## #?? " ### ### | | ?????????????????## ???##@##?? " ## ## | | ??????????????????# ????#RR#???" ## | | ??????????????????#????# ??"? ### | | ?????????????????????? # # ?????# ### | | ???????????????????? ? ## "???##??## | | ?????????????????? ? ? ##??####### | | ???????????????? ??# #??""#??## ### | | ?????????????? ###???###""#??? #??# #### | | ????????????? ?????????? ????#??# ## ## | | ???????????????????????? ???????# ### | | ????????????????????????# ???????# ##?? | | ????????????????????????## ???????### # ##??? | | ??????????????????????????# ?????????# ####???? | | ???????????????????????????#?????????## ##??????? | | ??????????????????????????????????????# #??????? | | ??????????????????????????????????????#####??????? | | ?????????????????????????????????????????????????? | | ?????????????????????????????????????????????????? | | ?????????????????????????????????????????????????? | | ?????????????????????????????????????????????????? | | ?????????????????????????????????????????????????? | | ?????????????????????????????????????????????????? | | ?????????????????????????????????????????????????? | | ?????????????????????????????????????????????????? | | ?????????????????????????????????????????????????? | +----------------------------------------------------+ Best States ------------- Heat Dissipation 25 Energy Generation 14 Energy Capacity 250 Matter Stores 300 Matter Capacity 300 Sight Range 16 Terrain Scan Density 10 Evasion (%) 40 Recoil Reduction 2 Item Schematics ----------------- None Robot Schematics ------------------ None Fabricated ------------ Nothing Repaired ---------- Nothing Studied --------- None Alien Tech Used ----------------- None Achievements -------------- None Challenges ------------ None Game ------ Seed SmallSmartbombRipteeth Manual? 0 Play Time 00:10:10 Cumulative 24.8 hours Start 2026.02.16 @ 14:27:45 End 2026.02.16 @ 14:35:22 Sessions 1 Manual Loads 0 Difficulty Rogue Special Mode None Game No. 65 Rogue 65 Adventurer 0 Explorer 0 Win Type - Total 0 Types 0/0/0/0/0/0/0/0/0/0 Lore% 16 Gallery% 25 Achievement% 19 Wizard Run 0 Options --------- Layout 1 ASCII 0 Keyboard 1 Movement Vi Keybinds 0 Fullscreen 1 Font 24/Smallcaps Map View 50x35 Zoom Use 0% Tactical HUD 1 Map Filters NONE Filters NONE Steam 1 RUN: 1b6aff80-593d-4824-9eb2-acd8315b7629